bitfinex-derivatives/quotes_SOLF0:USTF0_20251210
["timestamp","ask_amount","ask_price","bid_price","bid_amount"]
[1765397775747,31.00682682,142.11,141.98,0.04817634]
[1765397775944,31.00682682,142.11,142.03,0.05226173]
[1765397776145,0.04732122,142.06,141.95,98.6064]
[1765397776448,0.04884289,142.02,141.99,0.05226173]
[1765397776648,0.04864081,142.02,141.99,0.05216152]
[1765397777243,0.04864081,142.02,141.91,59.8]
[1765397777443,31.00682682,142.08,141.91,59.8]
[1765397777944,6.3332,142.09,141.91,59.8]
[1765397777945,90.62682682,142.1,141.92,98.6281]
[1765397778146,189.13212682,142.1,141.91,158.4336]
[1765397778448,0.05097462,142.02,141.91,164.7755]
[1765397778749,0.04972814,141.98,141.91,66.1404]
[1765397779046,0.05120034,141.96,141.93,6.3399]
[1765397779249,0.05016926,141.96,141.91,59.8]
[1765397781147,0.05016926,141.96,141.87,6.3422]
[1765397781353,0.05072772,141.93,141.87,6.3422]
[1765397781553,0.05067523,141.91,141.87,6.3422]
[1765397781754,0.05131357,141.9,141.85,66.1235]
[1765397781950,6.3355,142.04,141.85,66.1235]
[1765397781951,0.04534148,141.89,141.85,6.3435]
[1765397782145,0.04771319,141.88,141.85,66.1235]
[1765397782350,0.05052385,141.88,141.85,59.78]
[1765397782542,98.4442,142.19,141.95,98.6083]
[1765397782744,5.0,142.25,142.1,98.5015]
[1765397782944,5.0,142.25,142.13,98.4802]
[1765397783252,5.0,142.25,142.17,104.7837]
[1765397783551,98.4424,142.19,142.0,6.08111457]
[1765397783760,31.00682682,142.17,142.01,98.5635]
[1765397783950,98.4094,142.24,142.01,98.5635]
[1765397783951,134.40732682,142.25,142.05,98.5356]
[1765397784147,134.40732682,142.25,142.07,98.5242]
[1765397784148,5.0,142.25,142.07,98.5242]
[1765397784353,129.41712682,142.24,142.04,104.8802]
[1765397784652,0.05139432,142.15,142.06,98.5301]
[1765397784850,0.04957089,142.12,142.07,158.301]
[1765397785149,0.04526984,142.11,142.0,98.5722]
[1765397785353,0.05271957,142.07,142.01,158.3256]
[1765397785556,0.04578538,142.05,142.02,62.0]
[1765397785854,0.00459235,142.05,142.03,98.55]
[1765397786045,98.4355,142.2,142.03,6.3351]
[1765397786254,129.42382682,142.23,142.05,98.5362]
[1765397786451,31.00682682,142.23,142.06,98.5304]
[1765397786652,5.0,142.25,142.08,98.5154]
[1765397786854,5.0,142.25,142.09,59.76]
[1765397786855,98.4087,142.24,142.09,59.76]
[1765397787050,103.4009,142.25,142.15,0.04459235]
[1765397787051,0.0487956,142.18,142.15,0.04459235]
[1765397787246,0.05126856,142.18,142.15,0.04459235]
[1765397787455,0.05126856,142.18,142.16,59.74]
[1765397787957,0.05126856,142.18,142.16,158.2006]
[1765397788156,0.05126856,142.18,142.16,158.2025]
[1765397788359,5.0,142.25,142.2,98.4345]
[1765397788557,5.0,142.25,142.21,158.1657]
[1765397788753,4.86135601,142.25,142.23,6.3265]
[1765397789057,7.304e-05,142.26,142.23,98.414]
[1765397789248,7.304e-05,142.26,142.24,99.8027]
[1765397789556,0.05284736,142.26,142.25,6.3257]
[1765397790053,0.05277432,142.26,142.25,6.3257]
[1765397790358,0.05126856,142.26,142.24,0.04717977]
[1765397790549,98.305,142.39,142.24,0.04717977]
[1765397790859,98.305,142.39,142.23,98.4076]
[1765397790860,98.36666856,142.38,142.23,98.4076]
[1765397791056,0.05126856,142.38,142.25,98.3967]
[1765397791249,0.04721698,142.32,142.29,0.04960461]
[1765397791447,0.04458848,142.32,142.29,0.047041]
[1765397791654,0.05126856,142.31,142.29,0.047041]
[1765397792156,0.04458848,142.32,142.29,0.047041]
[1765397792458,0.09585704,142.32,142.29,0.047041]
[1765397792663,0.04458848,142.32,142.29,0.047041]
[1765397792850,0.04458848,142.32,142.29,59.747041]
[1765397793050,0.04458848,142.32,142.3,98.3617]
[1765397793259,0.04458848,142.32,142.3,196.7234]
[1765397793464,36.00682682,142.5,142.29,159.516741]
[1765397793465,36.00682682,142.5,142.36,98.3209]
[1765397793662,0.09585704,142.49,142.35,158.0247]
[1765397793857,0.09585704,142.49,142.35,158.0281]
[1765397794163,0.09585704,142.49,142.35,59.7]
[1765397794562,0.05314518,142.43,142.41,0.0472619]
[1765397794856,0.0471592,142.43,142.41,0.0472619]
[1765397795060,0.09585704,142.42,142.41,0.0472619]
[1765397796553,0.0471592,142.43,142.41,0.0472619]
[1765397796759,0.14301624,142.43,142.41,0.0472619]
[1765397797460,5.0,142.5,142.43,98.2728]
[1765397797670,5.0,142.5,142.41,157.9479]
[1765397797855,5.0,142.5,142.39,98.3005]
[1765397798163,5.0,142.5,142.4,98.2929]
[1765397798367,5.0,142.5,142.38,98.3056]
[1765397798666,0.04512583,142.45,142.43,0.0514239]
[1765397798964,0.05324503,142.45,142.43,0.0514239]
[1765397799859,0.05324503,142.45,142.37,98.3155]
[1765397799860,0.05324503,142.45,142.37,98.3143]
[1765397800365,0.05324503,142.45,142.37,6.3201]
[1765397800559,0.05324503,142.45,142.38,98.3071]
[1765397800760,0.05324503,142.45,142.4,0.04485273]
[1765397803563,0.05324503,142.45,142.4,98.34125273]
[1765397803770,0.05324503,142.45,142.41,98.2867]
[1765397804265,0.05324503,142.45,142.4,98.34125273]
[1765397804473,0.05324503,142.45,142.42,98.282]
[1765397804672,0.05324503,142.45,142.41,98.2871]
[1765397804966,0.05324503,142.45,142.4,0.04485273]
[1765397805170,0.05324503,142.45,142.4,98.34125273]
[1765397805572,0.05324503,142.45,142.41,6.3182]
[1765397805967,0.05324503,142.45,142.4,0.04485273]
[1765397806176,1.45324503,142.45,142.4,0.04485273]
[1765397806361,0.05324503,142.45,142.4,0.04485273]
[1765397806675,0.05324503,142.45,142.21,98.427]
[1765397806676,98.3385,142.34,142.21,98.427]
[1765397806864,129.30282682,142.41,142.27,98.3855]
[1765397807065,6.3191,142.4,142.29,6.3236]
[1765397807262,129.28562682,142.43,142.3,98.3636]
[1765397807467,0.05386496,142.38,142.3,98.3609]
[1765397807667,0.05386496,142.38,142.3,6.3234]
[1765397807868,0.05386496,142.38,142.3,104.6892]
[1765397808069,0.05386496,142.38,142.3,6.3234]
[1765397808265,0.05386496,142.38,142.28,6.3243]
[1765397808575,0.04980007,142.34,142.32,0.05372042]
[1765397808776,0.05064523,142.34,142.32,0.04522938]
[1765397808973,0.05064523,142.34,142.32,104.71932938]
[1765397809281,0.05064523,142.34,142.32,0.04522938]
[1765397809475,0.05064523,142.34,142.26,98.3918]
[1765397809676,0.05064523,142.34,142.25,98.3985]
[1765397809875,129.33232682,142.36,142.22,98.4194]
[1765397810075,129.33232682,142.36,142.22,6.327]
[1765397810076,6.322,142.34,142.22,6.327]
[1765397810280,129.33162682,142.36,142.23,98.413]
[1765397810480,31.00682682,142.28,142.17,98.4536]
[1765397810676,31.00682682,142.28,142.18,98.4454]
[1765397810974,0.04770988,142.24,142.22,98.4203]
[1765397811174,0.05206551,142.24,142.23,6.3262]
[1765397811578,98.2627,142.45,142.33,6.3219]
[1765397811777,122.88013973,142.46,142.33,6.3219]
[1765397811980,122.88013973,142.46,142.32,98.3478]
[1765397811981,24.61873973,142.46,142.32,98.3478]
[1765397812174,129.19143973,142.46,142.32,6.3225]
[1765397812480,24.61873973,142.46,142.33,98.345]
[1765397812678,0.04811915,142.4,142.38,0.05341519]
[1765397812883,0.04593848,142.4,142.38,0.05341519]
[1765397814176,0.04593848,142.4,142.38,98.36371519]
[1765397814380,0.04593848,142.4,142.38,104.68311519]
[1765397814577,0.04593848,142.4,142.38,106.08311519]
[1765397815286,0.04593848,142.4,142.38,104.68311519]
[1765397815875,0.04593848,142.4,142.38,106.08311519]
[1765397816080,0.04593848,142.4,142.38,6.37301519]
[1765397816383,0.04593848,142.4,142.38,7.77301519]
[1765397817077,0.04593848,142.4,142.38,104.68271519]
[1765397817282,0.04593848,142.4,142.38,106.08341519]
[1765397817484,0.04593848,142.4,142.38,0.05341519]
[1765397817678,0.04593848,142.4,142.38,62.05341519]
[1765397818072,0.04593848,142.4,142.38,68.37301519]
[1765397818483,0.04593848,142.4,142.38,0.05341519]
[1765397819284,0.04593848,142.4,142.38,6.37321519]
[1765397819482,0.04593848,142.4,142.38,0.05341519]
[1765397819787,0.04593848,142.4,142.38,6.37301519]
[1765397820177,0.04593848,142.4,142.38,104.68291519]
[1765397820589,0.04593848,142.4,142.38,6.37301519]
[1765397820886,0.04593848,142.4,142.38,0.05341519]
[1765397822682,0.04593848,142.4,142.26,98.3901]
[1765397822886,15.06774874,142.49,142.32,98.3515]
[1765397823192,98.253,142.47,142.33,59.58]
[1765397823379,15.06774874,142.45,142.29,59.58]
[1765397823580,98.2718,142.44,142.29,59.58]
[1765397823779,0.04998842,142.38,142.35,0.00079734]
[1765397823992,0.04998842,142.38,142.21,137.65131216]
[1765397823993,113.36094874,142.41,142.21,236.07311216]
[1765397824188,21.38734874,142.39,142.23,6.3262]
[1765397824495,98.2117,142.53,142.34,98.3336]
[1765397824791,0.05130066,142.43,142.34,98.3334]
[1765397824985,0.0474209,142.4,142.33,59.58]
[1765397825186,0.04862289,142.38,142.35,6.3209]
[1765397825388,0.04952893,142.38,142.33,59.58]
[1765397825785,0.04952893,142.38,142.35,6.321]
[1765397825985,5.0,142.5,142.43,98.2695]
[1765397826196,5.0,142.5,142.37,6.3202]
[1765397826499,5.0,142.5,142.36,59.58]
[1765397826690,5.0,142.5,142.29,196.739]
[1765397826887,5.0,142.5,142.37,98.3174]
[1765397827183,0.05062943,142.45,142.34,98.3364]
[1765397827387,103.2325,142.5,142.32,59.58]
[1765397827594,15.06774874,142.47,142.41,63.48]
[1765397827802,15.06774874,142.47,142.41,3.63103221]
[1765397827997,15.06774874,142.48,142.34,98.3346]
[1765397828198,0.05347544,142.42,142.32,59.58]
[1765397828397,0.04871332,142.38,142.32,59.58]
[1765397828588,15.06774874,142.44,142.31,6.3228]
[1765397828791,15.06774874,142.44,142.32,98.3472]
[1765397829092,0.04922038,142.39,142.3,98.3622]
[1765397829298,0.04951025,142.36,142.3,98.3622]
[1765397829599,5.0,142.5,142.39,98.3035]
[1765397829797,15.06774874,142.48,142.34,59.58]
[1765397830001,5.0,142.5,142.34,59.58]
[1765397830205,5.0,142.5,142.36,6.3206]
[1765397830399,5.0,142.5,142.42,0.04636312]
[1765397830400,0.04627247,142.44,142.42,0.04636312]
[1765397830699,5.0,142.5,142.42,98.32456312]
[1765397830890,5.0,142.5,142.44,98.2691]
[1765397831094,5.0,142.5,142.39,157.8818]
[1765397831403,5.0,142.5,142.39,59.58]
[1765397831697,5.0,142.5,142.35,6.3212]
[1765397832090,0.04698461,142.44,142.41,0.05143709]
[1765397832290,0.04463915,142.44,142.34,5.86652264]
[1765397832490,0.04463915,142.44,142.31,8.34953761]
[1765397832491,15.06774874,142.49,142.31,98.3589]
[1765397832902,15.06774874,142.49,142.34,98.3369]
[1765397833101,15.06774874,142.49,142.34,5.86652264]
[1765397833296,0.04484683,142.43,142.4,0.04648423]
[1765397833496,15.06774874,142.49,142.35,98.3279]
[1765397833706,0.04481812,142.43,142.4,0.05043678]
[1765397833898,0.04626883,142.43,142.4,0.05136302]
[1765397834400,1.44626883,142.43,142.4,0.00136302]
[1765397834903,0.04626883,142.43,142.4,0.00136302]
[1765397835498,1.44626883,142.43,142.31,65.44652264]
[1765397835701,98.2712,142.44,142.31,59.58]
[1765397835895,15.06774874,142.41,142.26,5.86652264]
[1765397836095,98.2568,142.46,142.27,98.386]
[1765397836299,15.06774874,142.46,142.28,104.24542264]
[1765397836496,0.04642624,142.38,142.3,98.3648]
[1765397836696,5.0,142.5,142.36,98.3214]
[1765397836912,20.06774874,142.5,142.34,5.86652264]
[1765397837203,15.06774874,142.46,142.31,65.44652264]
[1765397837504,98.2764,142.43,142.31,59.58]
[1765397837700,98.2764,142.43,142.27,5.86652264]
[1765397837701,0.04995787,142.38,142.27,6.3248]
[1765397837909,15.06774874,142.42,142.26,5.86652264]
[1765397838095,15.06774874,142.42,142.25,59.58]
[1765397838096,98.2904,142.41,142.25,59.58]
[1765397838297,72.5765179,142.43,142.26,14.2283763]
[1765397838505,15.06774874,142.41,142.27,7.9033763]
[1765397838701,15.06774874,142.41,142.4,16.40453828]
[1765397838900,15.06774874,142.41,142.4,8.204e-05]
[1765397839099,15.06774874,142.41,142.3,73.97929539]
[1765397839296,0.05394128,142.37,142.3,57.60129196]
[1765397839501,6.3196,142.39,142.3,57.60129196]
[1765397839698,15.06774874,142.41,142.3,45.45619479]
[1765397839898,98.2845,142.42,142.23,98.4142]
[1765397840099,141.1642968,142.3,142.25,98.4003]
[1765397840505,0.05265935,142.29,142.26,0.04591835]
[1765397840700,111.34297781,142.3,142.28,6.3243]
[1765397841011,111.34297781,142.3,142.26,0.04591835]
[1765397841209,84.78297781,142.3,142.28,6.3241]
[1765397841409,44.94297781,142.3,142.28,6.3241]
[1765397841706,221.78580509,142.46,142.3,98.361]
[1765397841913,0.0518243,142.39,142.37,0.04868654]
[1765397842109,0.0478706,142.39,142.37,0.04622994]
[1765397843303,0.0478706,142.39,142.26,157.9684]
[1765397843507,6.3183,142.42,142.31,6.3229]
[1765397843700,98.247,142.48,142.32,98.3518]
[1765397843900,6.3155,142.48,142.35,6.321]
[1765397844105,103.2291,142.5,142.35,6.321]
[1765397844106,98.2362,142.49,142.35,6.321]
[1765397844299,103.2291,142.5,142.35,6.321]
[1765397844300,0.04886144,142.43,142.41,0.05349896]
[1765397844509,5.0,142.5,142.41,0.04798074]
[1765397844706,0.05048632,142.47,142.4,6.3187]
[1765397844905,0.05048632,142.47,142.44,0.04890024]
[1765397845300,5.0,142.5,142.44,0.04890024]
[1765397846200,0.04966276,142.48,142.44,0.04890024]
[1765397846811,0.04966276,142.48,142.45,6.3165]
[1765397847005,0.04966276,142.48,142.45,98.2608]
[1765397847199,0.04966276,142.48,142.44,21.43384898]
[1765397847416,0.04966276,142.48,142.44,114.78284898]
[1765397847811,0.04966276,142.48,142.44,16.51664898]
[1765397848211,0.04966276,142.48,142.44,0.04890024]
[1765397848513,0.04966276,142.48,142.45,59.58]
[1765397848812,0.04966276,142.48,142.44,0.04890024]
[1765397849108,0.04966276,142.48,142.45,59.58]
[1765397849514,0.04966276,142.48,142.46,59.56]
[1765397849714,0.04966276,142.48,142.44,0.04890024]
[1765397850013,0.04966276,142.48,142.37,98.3156]
[1765397850320,98.2563,142.46,142.33,62.0]
[1765397850617,98.2508,142.47,142.37,59.56]
[1765397850808,0.05105349,142.43,142.41,0.0459172]
[1765397851014,0.05105349,142.43,142.34,59.56]
[1765397851308,98.2247,142.51,142.35,98.331]
[1765397851511,98.2421,142.48,142.34,59.56]
[1765397851817,98.235,142.49,142.35,59.56]
[1765397852005,0.05260579,142.43,142.41,0.02054223]
[1765397852202,0.05321952,142.43,142.41,0.02054223]
[1765397853325,1.45321952,142.43,142.26,98.3895]
[1765397853618,15.06774874,142.44,142.29,59.56]
[1765397853818,15.06774874,142.4,142.23,98.4136]
[1765397854117,15.06774874,142.4,142.24,157.9638]
[1765397854321,0.0467285,142.33,142.25,98.3956]
[1765397854524,0.0467285,142.33,142.26,98.3911]
[1765397854712,0.0467285,142.33,142.27,98.3832]
[1765397855023,5.0,142.5,142.29,104.33784251]
[1765397855219,5.0,142.5,142.31,98.3522]
[1765397855518,5.92141401,142.43,142.31,59.56]
[1765397856124,0.04544386,142.38,142.36,0.0467285]
[1765397856419,0.04560177,142.38,142.36,0.0467285]
[1765397856720,1.44560177,142.38,142.22,113.48346217]
[1765397856913,15.06856217,142.37,142.2,84.22]
[1765397857109,98.2931,142.41,142.2,84.22]
[1765397857110,15.06856217,142.41,142.24,98.4027]
[1765397857416,15.06856217,142.41,142.24,98.4042]
[1765397857823,0.04653682,142.34,142.23,98.4103]
[1765397858014,0.04797242,142.3,142.21,59.56]
[1765397858213,0.05128681,142.27,142.16,59.56]
[1765397858518,0.04721448,142.23,142.16,59.56]
[1765397858728,0.04572635,142.21,142.16,59.56]
[1765397858923,15.06856217,142.33,142.16,59.56]
[1765397858924,0.04609964,142.2,142.16,59.56]
[1765397859224,0.04866725,142.19,142.09,98.5101]
[1765397859420,0.05375584,142.15,142.1,59.56]
[1765397859620,0.04932246,142.14,142.1,59.56]
[1765397859810,15.06856217,142.29,142.1,98.501]
[1765397860013,98.3398,142.34,142.15,98.4634]
[1765397860217,113.40836217,142.34,142.14,98.4735]
[1765397860422,98.3624,142.31,142.13,113.54756217]
[1765397860619,98.3323,142.35,142.17,98.4523]
[1765397860620,15.06856217,142.35,142.17,98.4523]
[1765397860821,15.06856217,142.35,142.18,59.58]
[1765397861118,0.05258604,142.28,142.25,0.04621722]
[1765397861315,0.04539876,142.28,142.16,59.58]
[1765397861511,15.06856217,142.33,142.16,59.58]
[1765397861818,98.3103,142.39,142.21,98.4251]
[1765397862023,98.3139,142.38,142.22,62.0]
[1765397862319,0.04449374,142.31,142.23,59.58]
[1765397863024,0.04449374,142.31,142.16,98.4588]
[1765397863315,0.04733463,142.25,142.19,98.4417]
[1765397863625,0.04887714,142.23,142.17,59.58]
[1765397863924,0.05135329,142.21,142.17,59.58]
[1765397864115,15.06856217,142.33,142.17,158.0325]
[1765397864315,98.3411,142.34,142.17,158.0325]
[1765397864515,98.3631,142.31,142.17,59.6]
[1765397864715,98.3577,142.32,142.17,59.6]
[1765397864917,98.3422,142.34,142.17,158.0523]
[1765397865112,0.04504741,142.27,142.24,0.04707397]
[1765397865321,0.04504741,142.27,142.17,59.6]
[1765397865620,98.3775,142.29,142.16,59.6]
[1765397865823,98.3689,142.3,142.16,59.6]
[1765397866328,0.05289224,142.24,142.16,59.6]
[1765397867016,0.05289224,142.24,142.2,98.4319]
[1765397867218,98.2979,142.4,142.22,98.4159]
[1765397867419,98.2979,142.4,142.24,98.4043]
[1765397867623,113.35346217,142.42,142.25,98.3968]
[1765397867921,98.2761,142.43,142.26,98.389]
[1765397868223,0.04822586,142.36,142.33,0.04605073]
[1765397868518,0.04710451,142.36,142.33,0.05177281]
[1765397869120,0.04710451,142.36,142.33,1.45177281]
[1765397869310,0.04710451,142.36,142.33,0.05177281]
[1765397869513,0.04710451,142.36,142.33,1.45177281]
[1765397869710,0.04710451,142.36,142.33,0.05177281]
[1765397869917,0.04710451,142.36,142.33,1.45177281]
[1765397870116,104.5603,142.48,142.33,106.11507281]
[1765397870319,104.5603,142.48,142.33,104.6633]
[1765397870521,98.2359,142.49,142.34,98.3345]
[1765397871223,0.04553158,142.43,142.4,0.04828772]
[1765397871425,0.04553158,142.43,142.4,59.65336876]
[1765397871426,0.05171209,142.43,142.4,59.65336876]
[1765397871617,98.286,142.42,142.27,98.3864]
[1765397871821,98.286,142.42,142.28,59.6]
[1765397872024,98.2758,142.44,142.29,98.3693]
[1765397872223,98.2758,142.44,142.28,157.9765]
[1765397872412,98.2758,142.44,142.29,160.3666]
[1765397872612,0.0448341,142.38,142.35,0.04662799]
[1765397872825,0.04953127,142.38,142.35,0.04662799]
[1765397875330,0.04953127,142.38,142.36,59.58]
[1765397875529,104.5748,142.46,142.36,59.58]
[1765397875734,98.2584,142.46,142.36,59.58]
[1765397876028,6.3172,142.45,142.32,98.3478]
[1765397876330,6.3172,142.45,142.33,59.58]
[1765397876625,0.04780323,142.4,142.38,0.04451832]
[1765397876829,0.05328666,142.4,142.38,0.04451832]
[1765397877533,98.1867,142.56,142.42,98.2816]
[1765397877719,98.2155,142.52,142.42,59.58]
[1765397877918,25.94577685,142.58,142.42,59.58]
[1765397878129,124.12197685,142.58,142.42,59.58]
[1765397878427,6.3119,142.57,142.42,59.58]
[1765397878723,0.05264073,142.47,142.45,0.05395299]
[1765397881131,1.45264073,142.47,142.28,98.3728]
[1765397881331,1.45264073,142.47,142.26,25.94577685]
[1765397881332,139.25014995,142.44,142.26,98.3912]
[1765397881525,40.97744995,142.4,142.26,59.58]
[1765397882128,0.04712055,142.34,142.32,0.04854131]
[1765397882323,0.04517249,142.34,142.26,59.58]
[1765397882519,0.04517249,142.34,142.27,98.3837]
[1765397882723,0.04517249,142.34,142.26,59.58]
[1765397883331,0.04517249,142.34,142.29,0.04695162]
[1765397883527,15.0316731,142.4,142.31,98.358]
[1765397883931,15.0316731,142.4,142.34,98.3374]
[1765397884127,15.0316731,142.4,142.34,59.58]
[1765397884531,0.04619766,142.38,142.36,0.05261666]
[1765397886033,15.0316731,142.4,142.36,0.05261666]
[1765397886431,15.0316731,142.4,142.38,6.3196]
[1765397886834,15.0316731,142.4,142.36,0.05261666]
[1765397887029,0.0520643,142.39,142.36,0.05261666]
[1765397887727,0.0520643,142.39,142.32,59.58]
[1765397888439,0.0520643,142.39,142.32,157.9304]
[1765397888635,0.0520643,142.39,142.32,65.9025]
[1765397888841,0.0520643,142.39,142.34,0.0532198]
[1765397889634,25.94577685,142.37,142.24,196.8064]
[1765397889834,21.81579267,142.35,142.22,98.4166]
[1765397890043,15.49419267,142.35,142.28,98.3779]
[1765397890234,15.49419267,142.35,142.27,98.3843]
[1765397890428,15.49419267,142.35,142.28,104.7033]
[1765397890627,0.05358697,142.33,142.3,0.03248531]
[1765397890831,0.05358697,142.33,142.26,6.3251]
[1765397891128,0.05358697,142.33,142.23,59.58]
[1765397891335,15.49419267,142.35,142.23,157.9905]
[1765397891532,15.49419267,142.35,142.25,6.3254]
[1765397891728,15.49419267,142.35,142.23,59.58]
[1765397892040,0.04671146,142.3,142.22,6.3269]
[1765397892244,124.35848831,142.3,142.17,98.4553]
[1765397892441,0.05181676,142.25,142.17,98.4553]
[1765397892637,0.05181676,142.25,142.18,6.3285]
[1765397892940,0.05415627,142.23,142.15,98.4633]
[1765397893140,0.05415627,142.23,142.18,6.3288]
[1765397893338,0.05415627,142.23,142.15,98.4633]
[1765397893735,0.05415627,142.23,142.17,6.3289]
[1765397893933,0.04846371,142.21,142.17,98.4534]
[1765397894138,0.04723864,142.2,142.17,6.3292]
[1765397894331,0.0499067,142.2,142.19,98.4399]
[1765397894737,0.0499067,142.2,142.18,98.4448]
[1765397895145,0.0499067,142.2,142.17,104.7843]
[1765397895446,0.0499067,142.2,142.18,98.4481]
[1765397895744,0.0499067,142.2,142.19,59.6]
[1765397896146,15.5173427,142.3,142.25,98.3985]
[1765397896336,15.5173427,142.3,142.22,196.8382]
[1765397896734,15.5173427,142.3,142.21,98.4267]
[1765397896735,15.5173427,142.3,142.24,98.406]
[1765397897049,15.5173427,142.3,142.27,98.3854]
[1765397897245,15.56844218,142.3,142.28,104.7016]
[1765397897450,15.56844218,142.3,142.28,6.3243]
[1765397897747,0.05109948,142.3,142.28,106.1015]
[1765397898041,0.05109948,142.3,142.29,59.6]
[1765397898435,15.0316731,142.4,142.38,98.3097]
[1765397898633,15.0316731,142.4,142.37,98.3142]
[1765397899233,7.31e-05,142.4,142.38,104.6285]
[1765397899438,0.04757987,142.4,142.38,104.67995486]
[1765397899839,98.2033,142.54,142.39,98.3]
[1765397900042,98.2033,142.54,142.37,98.3142]
[1765397900043,9.15596776,142.51,142.37,98.3142]
[1765397900343,98.1964,142.55,142.4,98.2939]
[1765397900546,9.15596776,142.54,142.4,98.2939]
[1765397900754,98.2105,142.53,142.38,98.3068]
[1765397900944,0.05368336,142.45,142.43,0.04548072]
[1765397901140,98.2515,142.47,142.35,59.6]
[1765397901446,0.0540419,142.45,142.38,104.6289]
[1765397901640,0.0540419,142.45,142.4,98.295]
[1765397901943,0.0540419,142.45,142.41,59.6]
[1765397902145,0.0540419,142.45,142.42,6.3181]
[1765397902336,0.0540419,142.45,142.42,6.36589639]
[1765397902540,0.0540419,142.45,142.42,104.64879639]
[1765397902949,0.0540419,142.45,142.43,104.5922]
[1765397903342,4.19e-05,142.5,142.49,6.315]
[1765397903648,4.19e-05,142.5,142.49,65.915]
[1765397904143,4.19e-05,142.5,142.49,67.315]
[1765397904551,4.19e-05,142.5,142.49,65.915]
[1765397905247,4.19e-05,142.5,142.49,59.6]
[1765397905653,4.19e-05,142.5,142.48,0.05350533]
[1765397906446,4.19e-05,142.5,142.39,98.3029]
[1765397906447,1.4000419,142.5,142.37,98.3157]
[1765397906647,1.4000419,142.5,142.34,98.3338]
[1765397906648,124.17084934,142.49,142.34,98.3338]
[1765397906845,6.3163,142.47,142.35,6.321]
[1765397907051,25.93034934,142.45,142.32,157.9267]
[1765397907252,124.19694934,142.45,142.32,59.58]
[1765397907455,298.0,143.11,142.37,6.37349679]
[1765397907456,0.04927116,142.4,142.37,6.37349679]
[1765397907643,0.05209633,142.4,142.38,98.3098]
[1765397907841,4.19e-05,142.5,142.43,104.5918]
[1765397908040,4.19e-05,142.5,142.43,6.3175]
[1765397908247,4.19e-05,142.5,142.39,98.2978]
[1765397908540,4.19e-05,142.5,142.4,6.3186]
[1765397908746,4.19e-05,142.5,142.38,59.56]
[1765397909052,0.04490034,142.46,142.43,0.04459967]
[1765397910657,0.04490034,142.46,142.33,98.3413]
[1765397910857,6.3159,142.48,142.33,6.3221]
[1765397911152,98.2697,142.44,142.32,59.56]
[1765397911358,6.3181,142.42,142.32,59.56]
[1765397911653,0.04523382,142.38,142.36,0.04498426]
[1765397911855,6.36533382,142.38,142.23,6.3265]
[1765397912057,6.3201,142.38,142.23,6.3265]
[1765397912244,124.23334934,142.4,142.24,98.4072]
[1765397912450,25.93034934,142.4,142.24,98.4072]
[1765397912647,6.3199,142.39,142.23,98.4139]
[1765397912848,124.22994934,142.4,142.3,0.0527924]
[1765397912849,0.04521399,142.32,142.3,0.0527924]
[1765397913058,0.04752841,142.32,142.22,59.56]
[1765397913359,98.3331,142.35,142.22,59.56]
[1765397913860,98.3527,142.32,142.15,98.4683]
[1765397914149,0.04568624,142.25,142.13,59.56]
[1765397914359,0.05383647,142.2,142.07,98.5244]
[1765397914550,98.3829,142.28,142.12,98.4885]
[1765397914551,25.93034934,142.28,142.12,98.4885]
[1765397914742,0.04603253,142.21,142.12,98.4885]
[1765397914943,0.04755367,142.18,142.09,98.5073]
[1765397915148,0.04581468,142.15,142.08,59.56]
[1765397915348,0.05127151,142.13,142.06,98.531]
[1765397915544,0.05297879,142.11,142.04,98.5398]
[1765397915755,98.3667,142.3,142.13,98.4832]
[1765397915951,0.04484689,142.23,142.14,6.3302]
[1765397916158,0.05404432,142.2,142.14,6.3302]
[1765397916458,0.04908129,142.18,142.13,158.0632]
[1765397916662,0.04606938,142.17,142.13,158.0632]
[1765397916961,104.7004,142.29,142.13,59.58]
[1765397916962,0.05307049,142.16,142.13,59.58]
[1765397917150,0.05362165,142.16,142.13,59.58]
[1765397918053,0.05362165,142.16,142.09,6.3327]
[1765397918356,0.05362165,142.16,142.09,104.8434]